[Event "Championnat du monde jeunes U10"]
[Date "2024.11.19"]
[White "Ismailov, Omarbek"]
[Black "Santoro, Marco Antonio"]
[WhiteElo "1625"]
[BlackElo "1765"]
[Round "5.9"]
[Result "1-0"]
[TimeControl "5400+30"]

1. d4 d5 {[%clk 1:30:52]} 2. Bf4 {[%clk 1:31:18]} 2... Nf6 {[%clk 1:31:11]} 3.
e3 {[%clk 1:30:47]} 3... c5 {[%clk 1:31:31]} 4. c3 {[%clk 1:29:35]} 4... Nc6
{[%clk 1:31:49]} 5. Nd2 {[%clk 1:29:49]} 5... e6 {[%clk 1:32:05]} 6. Ngf3 {[%clk
1:30:03]} 6... a6 {[%clk 1:32:12]} 7. a4 {[%clk 1:29:28]} 7... Be7 {[%clk
1:32:29]} 8. Bd3 {[%clk 1:27:03]} 8... O-O {[%clk 1:32:48]} 9. O-O {[%clk
1:27:26]} 9... Re8 {[%clk 1:32:43]} 10. dxc5 {[%clk 1:14:53]} 10... Bxc5 {[%clk
1:32:29]} 11. b4 {[%clk 1:15:14]} 11... Bd6 {[%clk 1:29:28]} 12. Bxd6 {[%clk
1:15:24]} 12... Qxd6 {[%clk 1:29:46]} 13. e4 {[%clk 1:15:41]} 13... Ne5 {[%clk
1:26:01]} 14. Nxe5 {[%clk 1:15:00]} 14... Qxe5 {[%clk 1:25:10]} 15. Qc2 {[%clk
1:15:17]} 15... Qc7 {[%clk 1:15:19]} 16. Rfe1 {[%clk 1:12:32]} 16... h6 {[%clk
1:10:27]} 17. e5 {[%clk 1:12:45]} 17... Nd7 {[%clk 1:10:41]} 18. f4 {[%clk
1:09:14]} 18... b6 {[%clk 1:08:08]} 19. Nf3 {[%clk 1:05:44]} 19... Bb7 {[%clk
1:07:03]} 20. Nd4 {[%clk 1:05:51]} 20... Rac8 {[%clk 1:06:44]} 21. Rac1 {[%clk
1:06:04]} 21... a5 {[%clk 1:04:10]} 22. Nb5 {[%clk 1:06:10]} 22... Qc6 {[%clk
1:04:03]} 23. Na7 {[%clk 1:06:19]} 23... Qc7 {[%clk 1:04:26]} 24. Nxc8 {[%clk
1:06:41]} 24... Rxc8 {[%clk 1:04:53]} 25. Qb2 {[%clk 1:06:29]} 25... Ba8 {[%clk
1:04:27]} 26. c4 {[%clk 1:06:01]} 26... Qb7 {[%clk 1:04:43]} 27. bxa5 {[%clk
1:05:53]} 27... Rb8 {[%clk 1:04:19]} 28. cxd5 {[%clk 1:06:02]} 28... Qxd5 {[%clk
1:04:20]} 29. Be4 {[%clk 1:06:23]} 29... Qxa5 {[%clk 1:04:35]} 30. Bxa8 {[%clk
1:06:43]} 30... Qxa8 {[%clk 1:04:53]} 31. Ra1 {[%clk 1:05:56]} 31... Qa7 {[%clk
1:05:04]} 32. Kh1 {[%clk 1:06:13]} 32... Nc5 {[%clk 1:05:25]} 33. Qb5 {[%clk
1:05:52]} 33... Rd8 {[%clk 1:04:26]} 34. a5 {[%clk 1:05:15]} 34... Rd2 {[%clk
1:03:11]} 35. axb6 {[%clk 1:03:29]} 35... Qb7 {[%clk 1:03:33]} 36. Re2 {[%clk
1:03:28]} 36... Rxe2 {[%clk 1:03:48]} 37. Qxe2 {[%clk 1:03:49]} 37... Qxb6
{[%clk 1:04:04]} 38. Qc2 {[%clk 1:03:55]} 38... g6 {[%clk 1:04:06]} 39. Rb1
{[%clk 1:04:05]} 39... Qa7 {[%clk 1:03:51]} 40. h3 {[%clk 1:04:09]} 40... Kg7
{[%clk 1:03:31]} 41. Qf2 {[%clk 1:03:27]} 41... Qa5 {[%clk 1:03:37]} 42. Qd4
{[%clk 1:00:22]} 42... Qa2 {[%clk 1:01:13]} 43. Rb8 {[%clk 0:56:37]} 43... Qd5
{[%clk 1:00:28]} 44. Qxd5 {[%clk 0:51:15]} 44... exd5 {[%clk 1:00:50]} 45. Rb5
{[%clk 0:51:33]} 45... Ne6 {[%clk 1:01:12]} 46. g3 {[%clk 0:51:47]} 46... d4
{[%clk 1:01:34]} 47. Rd5 {[%clk 0:52:10]} 47... h5 {[%clk 1:01:41]} 48. h4
{[%clk 0:52:23]} 48... Kf8 {[%clk 1:01:54]} 49. Kg2 {[%clk 0:52:37]} 49... Ke7
{[%clk 1:02:13]} 50. Kf3 {[%clk 0:52:23]} 50... Ng7 {[%clk 1:00:53]} 51. Rxd4
{[%clk 0:52:14]} 51... Nf5 {[%clk 1:01:16]} 52. Ra4 {[%clk 0:52:31]} 52... Ke6
{[%clk 1:01:29]} 53. Ra6+ {[%clk 0:52:21]} 53... Ke7 {[%clk 1:01:52]} 54. g4
{[%clk 0:51:05]} 54... hxg4+ {[%clk 1:00:27]} 55. Kxg4 {[%clk 0:51:26]} 55...
Ne3+ {[%clk 1:00:43]} 56. Kg5 {[%clk 0:51:39]} 56... Ng2 {[%clk 1:00:45]} 57.
Ra3 {[%clk 0:51:50]} 57... Ke6 {[%clk 1:00:38]} 58. Ra6+ {[%clk 0:51:26]} 58...
Ke7 {[%clk 1:00:52]} 59. Ra2 {[%clk 0:51:47]} 59... Ne3 {[%clk 1:01:08]} 60. h5
{[%clk 0:51:56]} 60... gxh5 {[%clk 1:01:30]} 61. Kxh5 {[%clk 0:52:21]} 61... Nd5
{[%clk 1:00:37]} 62. f5 {[%clk 0:52:33]} 62... Ne3 {[%clk 1:00:32]} 63. Ra7+
{[%clk 0:52:53]} 63... Ke8 {[%clk 1:00:49]} 64. Kg5 {[%clk 0:53:04]} 64... Nd5
{[%clk 1:01:10]} 65. f6 {[%clk 0:53:16]} 65... Nb4 {[%clk 1:01:23]} 66. Kh6
{[%clk 0:53:24]} 66... Nc6 {[%clk 1:01:43]} 67. Rc7 {[%clk 0:53:49]} 67... Nd4
{[%clk 1:02:02]} 68. Kh7 {[%clk 0:53:40]} 68... Ne6 {[%clk 1:02:09]} 69. Re7+
{[%clk 0:54:03]} 69... Kf8 {[%clk 1:02:32]} 70. Ra7 {[%clk 0:54:09]} 70... Ke8
{[%clk 1:02:55]} 71. Kg8 {[%clk 0:54:26]} 71... Ng5 {[%clk 1:03:10]} 72. Re7+
{[%clk 0:54:43]} 72... Kd8 {[%clk 1:03:33]} 73. Rxf7 {[%clk 0:55:08]} 73... Ne6
{[%clk 1:03:38]} 74. Re7 {[%clk 0:55:15]} 74... Ng5 {[%clk 1:04:01]} 75. e6
{[%clk 0:55:36]} 75... Ne4 {[%clk 1:04:00]} 76. Rd7+ {[%clk 0:55:33]} 76... Kc8
{[%clk 1:04:18]} 77. f7 {[%clk 0:55:33]} 77... Nf6+ {[%clk 1:04:41]} 78. Kg7
{[%clk 0:55:58]} 78... Nxd7 {[%clk 1:04:44]} 79. exd7+ {[%clk 0:56:23]} 79...
Kxd7 {[%clk 1:05:05]} 80. f8=Q {[%clk 0:52:50]} 80... Ke6 {[%clk 1:05:34]} 81.
Qf4 {[%clk 0:53:03]} 81... Kd5 {[%clk 1:05:57]} 82. Kf6 {[%clk 0:53:26]} 82...
Kc5 {[%clk 1:06:22]} 83. Qe4 {[%clk 0:53:50]} 83... Kb5 {[%clk 1:06:45]} 84. Qd4
{[%clk 0:54:05]} 84... Kc6 {[%clk 1:06:52]} 85. Ke6 {[%clk 0:54:28]} 85... Kb5
{[%clk 1:07:19]} 86. Kd6 {[%clk 0:54:48]} 86... Ka5 {[%clk 1:07:28]} 87. Kc6
{[%clk 0:55:07]} 87... Ka6 {[%clk 1:07:49]} 88. Qa4# {[%clk 0:55:29]} 1-0

[Variant "Standard"]
[Site "Europe Echecs"]

[Event "Championnat du monde jeunes U10"]
[Date "2024.11.19"]
[White "Yevsieiev, Yaroslav"]
[Black "Yrysov, Timur"]
[WhiteElo "1706"]
[BlackElo "1604"]
[Round "5.10"]
[Result "1-0"]
[TimeControl "5400+30"]

1. e4 {[%clk 1:30:59]} 1... c5 {[%clk 1:30:13]} 2. Nf3 {[%clk 1:31:26]} 2... d6
{[%clk 1:30:04]} 3. d4 {[%clk 1:31:51]} 3... cxd4 {[%clk 1:29:59]} 4. Nxd4
{[%clk 1:32:17]} 4... Nf6 {[%clk 1:29:48]} 5. Nc3 {[%clk 1:32:38]} 5... e5
{[%clk 1:29:29]} 6. Nb3 {[%clk 1:33:03]} 6... Be6 {[%clk 1:29:12]} 7. f3 {[%clk
1:33:29]} 7... Be7 {[%clk 1:29:10]} 8. Be3 {[%clk 1:33:50]} 8... Nc6 {[%clk
1:28:17]} 9. Qd2 {[%clk 1:33:34]} 9... a6 {[%clk 1:27:39]} 10. Be2 {[%clk
1:32:08]} 10... b5 {[%clk 1:25:40]} 11. Nd5 {[%clk 1:31:01]} 11... Bxd5 {[%clk
1:19:50]} 12. exd5 {[%clk 1:31:18]} 12... Na7 {[%clk 1:18:15]} 13. Na5 {[%clk
1:31:07]} 13... Qc7 {[%clk 1:14:31]} 14. Bxa7 {[%clk 1:25:42]} 14... Rxa7 {[%clk
1:14:22]} 15. Nc6 {[%clk 1:26:07]} 15... Ra8 {[%clk 1:14:18]} 16. a4 {[%clk
1:26:24]} 16... O-O {[%clk 1:08:03]} 17. axb5 {[%clk 1:26:19]} 17... axb5 {[%clk
1:08:12]} 18. O-O {[%clk 1:26:34]} 18... Nh5 {[%clk 0:50:00]} 19. Bxb5 {[%clk
1:24:27]} 19... Bh4 {[%clk 0:46:14]} 20. Kh1 {[%clk 1:24:15]} 20... f5 {[%clk
0:44:35]} 21. Qb4 {[%clk 1:22:42]} 21... f4 {[%clk 0:41:31]} 22. Ra3 {[%clk
1:17:07]} 22... Rxa3 {[%clk 0:21:58]} 23. Qxa3 {[%clk 1:16:47]} 23... Qb6 {[%clk
0:22:07]} 24. Bc4 {[%clk 1:17:11]} 24... Rf6 {[%clk 0:21:30]} 25. Nxe5 {[%clk
1:17:01]} 25... Qd8 {[%clk 0:02:28]} 26. Ng4 {[%clk 1:14:27]} 26... Rg6 {[%clk
0:02:14]} 27. Ra1 {[%clk 1:13:38]} 27... Nf6 {[%clk 0:01:29]} 28. Qa8 {[%clk
1:13:49]} 28... Qxa8 {[%clk 0:01:26]} 29. Rxa8+ {[%clk 1:14:12]} 29... Kf7
{[%clk 0:01:47]} 30. Ne5+ {[%clk 1:14:14]} 30... dxe5 {[%clk 0:01:15]} 31. d6+
{[%clk 1:14:41]} 31... Nd5 {[%clk 0:01:29]} 32. Bxd5+ {[%clk 1:15:08]} 32... Kf6
{[%clk 0:00:46]} 33. d7 {[%clk 1:15:06]} 33... Kf5 {[%clk 0:01:11]} 34. Rf8+
{[%clk 1:15:30]} 34... Kg5 {[%clk 0:01:20]} 35. d8=Q+ {[%clk 1:15:49]} 35... Kh5
{[%clk 0:01:45]} 36. Rf5+ {[%clk 1:16:08]} 36... Rg5 {[%clk 0:01:58]} 37. Rxg5+
{[%clk 1:16:11]} 37... Bxg5 {[%clk 0:02:22]} 38. Qe8+ {[%clk 1:16:29]} 38... g6
{[%clk 0:02:45]} 39. Qg8 {[%clk 1:16:50]} 39... h6 {[%clk 0:02:50]} 40. Be4
{[%clk 1:17:12]} 40... Kh4 {[%clk 0:03:14]} 41. Qxg6 {[%clk 1:16:57]} 41... h5
{[%clk 0:03:36]} 42. Bf5 {[%clk 1:17:12]} 42... e4 {[%clk 0:03:56]} 43. fxe4
{[%clk 1:17:33]} 43... f3 {[%clk 0:04:14]} 44. g3# {[%clk 1:17:58]} 1-0

[Variant "Standard"]
[Site "Europe Echecs"]

[Event "Championnat du monde jeunes U10"]
[Date "2024.11.19"]
[White "Chen, Pin-Jui"]
[Black "von Flottwell, Lionel"]
[WhiteElo "1505"]
[BlackElo "1704"]
[Round "5.11"]
[Result "1-0"]
[TimeControl "5400+30"]

1. e4 {[%clk 1:30:58]} 1... e5 {[%clk 1:30:21]} 2. Nf3 {[%clk 1:31:23]} 2... Nc6
{[%clk 1:30:42]} 3. Bb5 {[%clk 1:31:39]} 3... a6 {[%clk 1:31:02]} 4. Ba4 {[%clk
1:32:04]} 4... Nf6 {[%clk 1:31:21]} 5. Qe2 {[%clk 1:32:14]} 5... b5 {[%clk
1:29:03]} 6. Bb3 {[%clk 1:32:39]} 6... Bc5 {[%clk 1:28:59]} 7. c3 {[%clk
1:32:59]} 7... O-O {[%clk 1:27:16]} 8. d3 {[%clk 1:33:23]} 8... d6 {[%clk
1:26:02]} 9. O-O {[%clk 1:33:33]} 9... Bg4 {[%clk 1:25:58]} 10. h3 {[%clk
1:33:55]} 10... Bh5 {[%clk 1:26:09]} 11. Rd1 {[%clk 1:34:04]} 11... b4 {[%clk
1:24:40]} 12. Be3 {[%clk 1:34:20]} 12... bxc3 {[%clk 1:21:26]} 13. bxc3 {[%clk
1:34:44]} 13... Bxe3 {[%clk 1:13:10]} 14. fxe3 {[%clk 1:35:07]} 14... d5 {[%clk
1:11:48]} 15. exd5 {[%clk 1:30:32]} 15... Nxd5 {[%clk 1:11:33]} 16. Kh1 {[%clk
1:09:23]} 16... f5 {[%clk 1:10:13]} 17. e4 {[%clk 1:09:37]} 17... Ne7 {[%clk
0:56:03]} 18. exd5 {[%clk 1:09:03]} 18... Qd6 {[%clk 0:55:04]} 19. Re1 {[%clk
1:08:47]} 19... Ng6 {[%clk 0:53:01]} 20. Nbd2 {[%clk 1:07:32]} 20... Nf4 {[%clk
0:33:23]} 21. Qxe5 {[%clk 1:05:22]} 21... Nxd3 22. Qxd6 {[%clk 1:05:46]} 22...
cxd6 {[%clk 0:32:09]} 23. Re3 {[%clk 1:06:08]} 23... Nc5 {[%clk 0:31:27]} 24.
Bc2 {[%clk 1:05:49]} 24... h6 {[%clk 0:28:01]} 25. Nd4 {[%clk 1:03:22]} 25... f4
{[%clk 0:22:47]} 26. Re7 {[%clk 1:03:24]} 26... Rae8 {[%clk 0:09:54]} 27. Rae1
{[%clk 1:03:36]} 27... Rxe7 {[%clk 0:08:55]} 28. Rxe7 {[%clk 1:04:01]} 28... Rc8
{[%clk 0:07:19]} 29. Ne6 {[%clk 1:03:44]} 29... Nxe6 {[%clk 0:06:53]} 30. Rxe6
{[%clk 1:02:55]} 30... Rxc3 {[%clk 0:06:38]} 31. Bg6 {[%clk 1:03:14]} 31... Bxg6
{[%clk 0:05:51]} 32. Rxg6 {[%clk 1:03:23]} 32... Rc2 {[%clk 0:05:37]} 33. Ne4
{[%clk 1:03:29]} 33... Rxa2 {[%clk 0:05:34]} 34. Rxd6 {[%clk 1:03:51]} 34... h5
{[%clk 0:05:40]} 35. Nc5 {[%clk 1:04:06]} 35... a5 {[%clk 0:05:31]} 36. Ra6
{[%clk 1:04:28]} 36... Rd2 {[%clk 0:03:15]} 37. d6 {[%clk 1:04:56]} 37... g5
{[%clk 0:03:18]} 38. d7 {[%clk 1:05:19]} 38... Kf7 {[%clk 0:02:33]} 39. Rxa5
{[%clk 1:05:39]} 39... g4 {[%clk 0:02:46]} 40. Kg1 {[%clk 1:05:30]} 40... g3
{[%clk 0:02:56]} 41. Kf1 {[%clk 1:05:52]} 41... Ke7 {[%clk 0:02:48]} 42. Ra8
{[%clk 1:06:16]} 42... f3 {[%clk 0:01:14]} 43. Re8+ {[%clk 1:06:33]} 43... Kf7
{[%clk 0:00:41]} 44. d8=Q {[%clk 1:06:41]} 44... Rxd8 {[%clk 0:00:35]} 45. Rxd8
{[%clk 1:07:05]} 45... f2 {[%clk 0:00:54]} 46. Ne4 {[%clk 1:07:24]} 46... h4
{[%clk 0:01:15]} 47. Nxf2 {[%clk 1:07:48]} 47... gxf2 {[%clk 0:01:33]} 48. Kxf2
{[%clk 1:08:13]} 48... Kg6 {[%clk 0:01:40]} 49. g4 {[%clk 1:08:31]} 49... Kg5
{[%clk 0:01:38]} 50. Kf3 {[%clk 1:08:53]} 50... Kg6 {[%clk 0:01:52]} 51. Rd7
{[%clk 1:09:21]} 51... Kg5 {[%clk 0:02:09]} 52. Ke4 {[%clk 1:09:49]} 52... Kg6
{[%clk 0:02:05]} 53. Kf4 {[%clk 1:10:09]} 53... Kh6 {[%clk 0:02:17]} 54. Rd6+
{[%clk 1:10:28]} 54... Kg7 {[%clk 0:02:31]} 55. Kf5 {[%clk 1:10:57]} 55... Kh7
{[%clk 0:02:43]} 56. Rd7+ {[%clk 1:11:16]} 56... Kh6 {[%clk 0:02:36]} 57. g5+
{[%clk 1:11:41]} 57... Kh5 {[%clk 0:02:51]} 58. Rh7# {[%clk 1:12:06]} 1-0

[Variant "Standard"]
[Site "Europe Echecs"]

[Event "Championnat du monde jeunes U10"]
[Date "2024.11.19"]
[White "DAmato, Raffaele"]
[Black "Veber, Tibor"]
[WhiteElo "1695"]
[BlackElo "1532"]
[Round "5.12"]
[Result "1-0"]
[TimeControl "5400+30"]

1. d4 {[%clk 1:30:59]} 1... d5 {[%clk 1:30:13]} 2. Nf3 {[%clk 1:31:24]} 2... Nf6
{[%clk 1:30:25]} 3. e3 {[%clk 1:31:50]} 3... e6 {[%clk 1:28:47]} 4. Bd3 {[%clk
1:32:15]} 4... Be7 {[%clk 1:26:05]} 5. O-O {[%clk 1:31:23]} 5... O-O {[%clk
1:24:01]} 6. b3 {[%clk 1:31:17]} 6... c5 {[%clk 1:22:13]} 7. Bb2 {[%clk
1:31:13]} 7... Nc6 {[%clk 1:20:08]} 8. a3 {[%clk 1:31:19]} 8... b6 {[%clk
1:17:40]} 9. Nbd2 {[%clk 1:31:12]} 9... Bb7 {[%clk 1:14:45]} 10. Ne5 {[%clk
1:30:41]} 10... Qc7 {[%clk 1:12:20]} 11. f4 {[%clk 1:29:54]} 11... a6 {[%clk
1:11:41]} 12. Rf3 {[%clk 1:28:38]} 12... b5 {[%clk 1:09:32]} 13. dxc5 {[%clk
1:27:42]} 13... Bxc5 {[%clk 1:07:55]} 14. Nxc6 {[%clk 1:27:55]} 14... Qxc6
{[%clk 1:05:35]} 15. Bxf6 {[%clk 1:28:06]} 15... gxf6 {[%clk 1:05:25]} 16. Rg3+
{[%clk 1:27:36]} 16... Kh8 {[%clk 1:04:39]} 17. Qh5 {[%clk 1:27:54]} 17... f5
18. Rh3 Bxe3+ {[%clk 1:02:10]} 19. Kh1 {[%clk 1:28:07]} 19... Kg7 {[%clk
1:00:59]} 20. Qh6+ {[%clk 1:28:19]} 1-0

[Variant "Standard"]
[Site "Europe Echecs"]

[Event "Championnat du monde jeunes U10"]
[Date "2024.11.19"]
[White "Lenkov, Stanislav"]
[Black "Wang, Yuwei"]
[WhiteElo "1693"]
[BlackElo "1576"]
[Round "5.13"]
[Result "1-0"]
[TimeControl "5400+30"]

1. e4 {[%clk 1:30:24]} 1... c5 {[%clk 1:30:49]} 2. Nf3 {[%clk 1:29:49]} 2... d6
{[%clk 1:30:52]} 3. d4 {[%clk 1:29:42]} 3... cxd4 {[%clk 1:31:16]} 4. Nxd4
{[%clk 1:29:45]} 4... Nf6 {[%clk 1:31:27]} 5. Nc3 {[%clk 1:29:53]} 5... a6
{[%clk 1:31:51]} 6. Nb3 {[%clk 1:28:07]} 6... e6 {[%clk 1:27:27]} 7. g4 {[%clk
1:28:09]} 7... h6 {[%clk 1:23:51]} 8. Bg2 {[%clk 1:26:54]} 8... Nc6 {[%clk
1:23:16]} 9. Be3 {[%clk 1:25:44]} 9... Bd7 {[%clk 1:20:23]} 10. h3 {[%clk
1:23:13]} 10... Ne5 {[%clk 1:12:13]} 11. Qe2 {[%clk 1:20:12]} 11... Qc7 {[%clk
1:10:19]} 12. Nd2 {[%clk 1:09:29]} 12... Rc8 {[%clk 1:09:29]} 13. f4 {[%clk
1:09:10]} 13... Nc4 {[%clk 1:09:46]} 14. Nxc4 {[%clk 1:09:12]} 14... Qxc4 {[%clk
1:09:13]} 15. Qxc4 {[%clk 1:07:22]} 15... Rxc4 {[%clk 1:09:38]} 16. e5 {[%clk
1:07:28]} 16... dxe5 {[%clk 1:01:16]} 17. fxe5 {[%clk 1:06:55]} 17... Nd5 {[%clk
0:59:27]} 18. Bxd5 {[%clk 1:06:22]} 18... exd5 {[%clk 0:59:36]} 19. O-O-O {[%clk
1:06:33]} 19... Ba4 {[%clk 0:56:09]} 20. Nxa4 {[%clk 1:02:18]} 20... Rxa4 {[%clk
0:56:31]} 21. Rxd5 {[%clk 1:02:33]} 21... Rxa2 {[%clk 0:55:14]} 22. Kb1 {[%clk
1:02:05]} 22... Ra4 {[%clk 0:52:49]} 23. Rhd1 {[%clk 1:00:37]} 23... Be7 {[%clk
0:48:54]} 24. Rd7 {[%clk 0:57:41]} 24... Bh4 {[%clk 0:37:16]} 25. Bc5 {[%clk
0:54:53]} 25... b6 {[%clk 0:26:13]} 26. Rc7 {[%clk 0:49:38]} 26... bxc5 {[%clk
0:25:32]} 27. Rc8+ {[%clk 0:49:48]} 27... Ke7 {[%clk 0:24:23]} 28. Rxh8 {[%clk
0:50:13]} 28... Re4 {[%clk 0:21:35]} 29. Ra8 {[%clk 0:49:05]} 29... Rxe5 {[%clk
0:20:45]} 30. Rxa6 {[%clk 0:49:03]} 30... Bf2 {[%clk 0:18:17]} 31. Rf1 {[%clk
0:48:52]} 31... Re2 {[%clk 0:18:14]} 32. Ra3 {[%clk 0:45:53]} 32... f6 {[%clk
0:17:45]} 33. Ra7+ {[%clk 0:44:03]} 33... Kf8 {[%clk 0:17:23]} 34. Rd1 {[%clk
0:44:30]} 34... Re8 {[%clk 0:16:31]} 35. Rdd7 {[%clk 0:44:48]} 35... g5 {[%clk
0:12:35]} 36. Rf7+ {[%clk 0:45:01]} 36... Kg8 {[%clk 0:12:58]} 37. Rxf6 {[%clk
0:45:10]} 37... Bd4 {[%clk 0:12:46]} 38. Rxh6 {[%clk 0:44:52]} 38... c4 {[%clk
0:11:48]} 39. Rg6+ {[%clk 0:43:25]} 39... Kf8 {[%clk 0:10:10]} 40. Rc7 {[%clk
0:43:13]} 40... c3 {[%clk 0:09:39]} 41. bxc3 {[%clk 0:43:01]} 41... Rb8+ {[%clk
0:07:59]} 42. Ka2 {[%clk 0:40:35]} 42... Ra8+ {[%clk 0:08:10]} 43. Kb3 {[%clk
0:40:53]} 43... Rb8+ {[%clk 0:08:22]} 44. Kc4 {[%clk 0:41:10]} 44... Be5 {[%clk
0:07:19]} 45. Rcc6 {[%clk 0:40:43]} 45... Bg7 {[%clk 0:04:12]} 46. Rxg5 {[%clk
0:38:36]} 46... Ra8 {[%clk 0:03:37]} 47. Rc7 {[%clk 0:38:13]} 47... Bh6 {[%clk
0:02:28]} 48. Rf5+ {[%clk 0:34:49]} 48... Kg8 {[%clk 0:02:21]} 49. g5 {[%clk
0:33:59]} 49... Bf8 {[%clk 0:01:56]} 50. h4 {[%clk 0:32:42]} 50... Ra4+ {[%clk
0:02:04]} 51. Kb5 {[%clk 0:32:57]} 51... Ra8 {[%clk 0:02:06]} 52. h5 {[%clk
0:32:54]} 52... Rb8+ 53. Kc6 {[%clk 0:32:30]} 53... Ra8 {[%clk 0:01:39]} 54. Kb7
{[%clk 0:31:55]} 54... Re8 {[%clk 0:01:13]} 55. Rxf8+ {[%clk 0:32:14]} 55...
Rxf8 {[%clk 0:01:24]} 56. Rc8 {[%clk 0:32:40]} 56... Rxc8 {[%clk 0:01:46]} 57.
Kxc8 {[%clk 0:33:06]} 57... Kg7 {[%clk 0:02:02]} 58. Kd7 {[%clk 0:33:29]} 58...
Kf7 {[%clk 0:02:16]} 59. c4 {[%clk 0:33:55]} 59... Kg7 {[%clk 0:02:39]} 60. c5
{[%clk 0:34:15]} 60... Kh7 {[%clk 0:03:01]} 61. c6 {[%clk 0:33:25]} 61... Kg8
{[%clk 0:03:24]} 62. c7 {[%clk 0:33:44]} 62... Kg7 {[%clk 0:03:48]} 63. c8=Q
{[%clk 0:33:57]} 63... Kh7 {[%clk 0:04:13]} 64. Qe8 {[%clk 0:34:05]} 64... Kg7
{[%clk 0:04:37]} 65. Qe7+ {[%clk 0:34:32]} 65... Kg8 {[%clk 0:04:51]} 66. h6
{[%clk 0:34:57]} 66... Kh8 {[%clk 0:05:14]} 67. Qg7# {[%clk 0:35:22]} 1-0

[Variant "Standard"]
[Site "Europe Echecs"]

[Event "Championnat du monde jeunes U10"]
[Date "2024.11.19"]
[White "Loberti, Tommaso"]
[Black "Sahin, Yusuf Kerem"]
[WhiteElo "1474"]
[BlackElo "1720"]
[Round "5.14"]
[Result "0-1"]
[TimeControl "5400+30"]

1. e4 {[%clk 1:30:59]} 1... c5 {[%clk 1:30:37]} 2. Nf3 {[%clk 1:31:22]} 2... d6
{[%clk 1:31:01]} 3. d4 {[%clk 1:31:43]} 3... cxd4 {[%clk 1:31:25]} 4. Nxd4
{[%clk 1:32:01]} 4... Nf6 {[%clk 1:31:49]} 5. Nc3 {[%clk 1:32:18]} 5... g6
{[%clk 1:32:11]} 6. Be3 {[%clk 1:32:19]} 6... Bg7 7. Bc4 {[%clk 1:32:22]} 7...
O-O {[%clk 1:32:34]} 8. f3 {[%clk 1:32:31]} 8... Nc6 {[%clk 1:32:51]} 9. Qd2
{[%clk 1:32:05]} 9... Nxd4 {[%clk 1:31:43]} 10. Bxd4 {[%clk 1:31:57]} 10... Be6
{[%clk 1:31:14]} 11. Bxe6 {[%clk 1:27:29]} 11... fxe6 {[%clk 1:31:37]} 12. O-O-O
{[%clk 1:24:53]} 12... Qa5 {[%clk 1:30:37]} 13. h4 {[%clk 1:18:25]} 13... b5
{[%clk 1:29:29]} 14. Kb1 {[%clk 1:13:18]} 14... b4 {[%clk 1:28:20]} 15. Ne2
{[%clk 1:12:22]} 15... Qb5 {[%clk 1:27:43]} 16. Qd3 {[%clk 1:08:29]} 16... Qb7
{[%clk 1:25:57]} 17. g4 {[%clk 1:04:50]} 17... a5 {[%clk 1:19:07]} 18. Qb3
{[%clk 0:59:50]} 18... d5 {[%clk 1:10:52]} 19. Bxf6 {[%clk 0:56:20]} 19... a4
{[%clk 1:09:02]} 20. Qd3 {[%clk 0:53:00]} 20... Rxf6 {[%clk 1:06:32]} 21. exd5
{[%clk 0:51:24]} 21... Rd8 {[%clk 1:06:03]} 22. Qe3 {[%clk 0:46:01]} 22... Rxd5
{[%clk 1:03:54]} 23. Rxd5 {[%clk 0:41:50]} 23... Qxd5 {[%clk 0:59:59]} 24. Nf4
{[%clk 0:38:38]} 24... Qc4 {[%clk 0:50:12]} 25. Nd3 {[%clk 0:33:35]} 25... b3
{[%clk 0:49:13]} 26. cxb3 {[%clk 0:31:09]} 26... axb3 {[%clk 0:49:27]} 27. Rc1
{[%clk 0:29:20]} 27... bxa2+ {[%clk 0:47:27]} 28. Ka1 Qb3 {[%clk 0:45:36]} 29.
Rc3 {[%clk 0:25:40]} 29... Qd5 {[%clk 0:37:07]} 30. Nb4 {[%clk 0:21:25]} 30...
Qd1+ {[%clk 0:37:04]} 31. Qc1 {[%clk 0:21:33]} 31... Qxc1+ {[%clk 0:36:36]} 32.
Rxc1 {[%clk 0:21:54]} 32... Rxf3 {[%clk 0:36:50]} 33. Nxa2 Rf4 {[%clk 0:36:01]}
34. Rg1 {[%clk 0:20:53]} 34... Bd4 {[%clk 0:36:16]} 35. Rh1 {[%clk 0:20:51]}
35... Rxg4 {[%clk 0:36:33]} 36. Nc3 {[%clk 0:20:36]} 36... h5 {[%clk 0:36:02]}
37. Ne2 {[%clk 0:20:29]} 37... Bf6 {[%clk 0:36:07]} 0-1

[Variant "Standard"]
[Site "Europe Echecs"]